bitfinex/quotes_BTCUSD_20250519
["timestamp","ask_amount","ask_price","bid_price","bid_amount"]
[1747624078870,0.79857995,104350.0,104340.0,0.0174955]
[1747624079198,0.79721995,104350.0,104340.0,0.0174955]
[1747624083888,0.79721995,104350.0,104340.0,0.0326955]
[1747624084532,1.21109995,104350.0,104340.0,0.0174955]
[1747624084951,1.21109995,104350.0,104340.0,0.0482955]
[1747624084952,0.72601995,104350.0,104340.0,0.0482955]
[1747624085176,0.87179055,104350.0,104340.0,0.0482955]
[1747624087140,1.20417432,104350.0,104340.0,0.0174955]
[1747624087380,1.25452381,104350.0,104340.0,0.0174955]
[1747624087600,1.00039995,104350.0,104340.0,0.0174955]
[1747624087800,0.98459995,104350.0,104340.0,0.0174955]
[1747624090128,1.20417432,104350.0,104340.0,0.0174955]
[1747624090346,1.21997432,104350.0,104340.0,0.0174955]
[1747624090775,1.00039995,104350.0,104340.0,0.0174955]
[1747624094159,1.21997432,104350.0,104340.0,0.0174955]
[1747624096778,1.00039995,104350.0,104340.0,0.0174955]
[1747624097021,0.98459995,104350.0,104340.0,0.0174955]
[1747624097241,1.20417432,104350.0,104340.0,0.0174955]
[1747624097655,1.22067432,104350.0,104340.0,0.0174955]
[1747624098308,1.00109995,104350.0,104340.0,0.0174955]
[1747624098942,1.22067432,104350.0,104340.0,0.0174955]
[1747624099283,1.20417432,104350.0,104340.0,0.0174955]
[1747624099495,0.98459995,104350.0,104340.0,0.0174955]
[1747624102354,1.20417432,104350.0,104340.0,0.0174955]
[1747624102795,0.98459995,104350.0,104340.0,0.0174955]
[1747624103422,1.20417432,104350.0,104340.0,0.0174955]
[1747624103828,1.21937432,104350.0,104340.0,0.0174955]
[1747624104326,1.95161249,104350.0,104340.0,0.0174955]
[1747624104487,2.07310763,104350.0,104340.0,0.0174955]
[1747624104691,1.97579823,104350.0,104340.0,0.0174955]
[1747624104965,1.75622386,104350.0,104340.0,0.0174955]
[1747624105542,1.75422386,104350.0,104340.0,0.0174955]
[1747624105759,1.97379823,104350.0,104340.0,0.0174955]
[1747624105943,1.97879823,104350.0,104340.0,0.0174955]
[1747624106162,1.97679823,104350.0,104340.0,0.0174955]
[1747624106326,1.75722386,104350.0,104340.0,0.0174955]
[1747624106532,1.88222386,104350.0,104340.0,0.0174955]
[1747624107118,1.7711079,104350.0,104340.0,0.0174955]
[1747624108432,1.78629066,104350.0,104340.0,0.0174955]
[1747624110669,1.54321066,104350.0,104340.0,0.0174955]
[1747624110815,2.01585066,104350.0,104340.0,0.0174955]
[1747624111287,2.0272091,104350.0,104340.0,0.0174955]
[1747624113082,2.25678347,104350.0,104340.0,0.0174955]
[1747624113286,0.80204307,104330.0,104320.0,0.002]
[1747624113455,0.89935247,104330.0,104320.0,0.002]
[1747624114254,0.93341407,104330.0,104320.0,0.002]
[1747624114455,0.9689406,104330.0,104320.0,0.002]
[1747624114665,0.93341407,104330.0,104320.0,0.002]
[1747624114874,0.93741407,104330.0,104320.0,0.002]
[1747624115350,1.40921407,104330.0,104320.0,0.002]
[1747624116090,1.42355372,104330.0,104320.0,0.002]
[1747624116725,1.42755372,104330.0,104320.0,0.002]
[1747624120438,1.4381141,104330.0,104320.0,0.002]
[1747624122343,1.5581141,104330.0,104320.0,0.002]
[1747624122712,1.0547141,104330.0,104320.0,0.002]
[1747624122920,0.8990981,104330.0,104320.0,0.0174]
[1747624123127,0.6681381,104330.0,104320.0,0.0327]
[1747624123528,0.8990181,104330.0,104320.0,0.0327]
[1747624123900,0.3388687,104330.0,104320.0,0.0327]
[1747624124060,0.8015887,104330.0,104320.0,0.0327]
[1747624124392,0.8015887,104330.0,104320.0,0.04307822]
[1747624124745,0.3388687,104330.0,104320.0,0.04307822]
[1747624124959,0.5707887,104330.0,104320.0,0.04059822]
[1747624125171,0.14716929,104330.0,104320.0,0.5914875]
[1747624125381,0.01758423,104330.0,104320.0,0.72350851]
[1747624125592,0.04633821,104330.0,104320.0,0.71392327]
[1747624125791,0.22845339,104330.0,104320.0,0.71392327]
[1747624126048,0.22845339,104330.0,104320.0,0.70433775]
[1747624126251,0.22445339,104330.0,104320.0,0.70433775]
[1747624126397,0.22045339,104330.0,104320.0,0.70433775]
[1747624126607,0.22045339,104330.0,104320.0,0.70433784]
[1747624126608,0.21286888,104330.0,104320.0,0.70433784]
[1747624126813,0.20428428,104330.0,104320.0,0.70433793]
[1747624127355,0.20228428,104330.0,104320.0,0.51262014]
[1747624127498,0.19269941,104330.0,104320.0,0.51262014]
[1747624127702,0.20126723,104340.0,104330.0,0.34]
[1747624127933,0.19168327,104340.0,104330.0,0.4692094]
[1747624128339,0.19407931,104340.0,104330.0,0.3719]
[1747624128581,0.19168327,104340.0,104330.0,0.3719]
[1747624128952,0.22043254,104340.0,104330.0,0.48375025]
[1747624129164,0.21184895,104340.0,104330.0,0.48475025]
[1747624129374,0.21184895,104340.0,104330.0,0.49433522]
[1747624129569,0.21184895,104340.0,104330.0,0.48475025]
[1747624129816,0.21184895,104340.0,104330.0,0.3729]
[1747624130380,0.21284895,104340.0,104330.0,0.3739]
[1747624131765,0.21284895,104340.0,104330.0,0.67249368]
[1747624131766,0.21284849,104340.0,104330.0,0.67249368]
[1747624131971,0.01158331,104340.0,104330.0,0.67249368]
[1747624132177,0.03075039,104340.0,104330.0,0.6916626]
[1747624132385,0.04033425,104340.0,104330.0,0.6916626]
[1747624132910,0.04033425,104340.0,104330.0,0.4712094]
[1747624132911,0.23201659,104340.0,104330.0,0.4712094]
[1747624133112,0.22243291,104340.0,104330.0,0.4712094]
[1747624133316,0.22243291,104340.0,104330.0,0.48079437]
[1747624133457,0.21284905,104340.0,104330.0,0.48079437]
[1747624134298,0.21284905,104340.0,104330.0,0.49037924]
[1747624134506,0.21284905,104340.0,104330.0,0.69166343]
[1747624134755,0.21284905,104340.0,104330.0,0.69611129]
[1747624136444,0.21284905,104340.0,104330.0,0.49482701]
[1747624136779,0.21284905,104340.0,104330.0,0.6961112]
[1747624137811,0.21246562,104340.0,104330.0,0.6961112]
[1747624138370,0.21246562,104340.0,104330.0,0.68652642]
[1747624139657,0.21246562,104340.0,104330.0,0.49482701]
[1747624139867,0.21246562,104340.0,104330.0,0.48524204]
[1747624140055,0.20288166,104340.0,104330.0,0.68652632]
[1747624140398,0.20288166,104340.0,104330.0,0.69611092]
[1747624140778,0.20288166,104340.0,104330.0,0.48524204]
[1747624140895,0.20288166,104340.0,104330.0,0.49482691]
[1747624141501,0.20288166,104340.0,104330.0,0.68652632]
[1747624142124,0.20288166,104340.0,104330.0,0.69611101]
[1747624142358,0.20288166,104340.0,104330.0,0.68652632]
[1747624142561,0.20288166,104340.0,104330.0,0.48524204]
[1747624142769,0.20288166,104340.0,104330.0,0.49482701]
[1747624144005,0.20288166,104340.0,104330.0,0.04793264]
[1747624144455,0.21246543,104340.0,104330.0,0.24921692]
[1747624144660,0.20288166,104340.0,104330.0,0.24921692]
[1747624144901,0.20288166,104340.0,104330.0,0.04793264]
[1747624145118,0.19329761,104340.0,104330.0,0.04793264]
[1747624148219,0.00161657,104340.0,104330.0,0.23963205]
[1747624148380,0.02078402,104340.0,104330.0,0.36569524]
[1747624148576,0.03995129,104340.0,104330.0,0.36569524]
[1747624149200,0.03995129,104340.0,104330.0,0.38023609]
[1747624149201,0.00161657,104340.0,104330.0,0.38023609]
[1747624149423,0.01119988,104340.0,104330.0,0.38023609]
[1747624149641,0.01119997,104340.0,104330.0,0.38023609]
[1747624150496,0.0105834,104340.0,104330.0,0.37923609]
[1747624150702,0.0105834,104340.0,104330.0,0.14060404]
[1747624150909,0.002,104340.0,104330.0,0.33430345]
[1747624151115,0.001,104340.0,104330.0,0.33430345]
[1747624151465,0.002,104340.0,104330.0,0.56018345]
[1747624152106,0.001,104340.0,104330.0,0.55818345]
[1747624152316,0.001,104340.0,104330.0,0.56525669]
[1747624152725,0.002,104340.0,104330.0,0.56825669]
[1747624152937,0.001,104340.0,104330.0,0.56625669]
[1747624153313,0.00248144,104350.0,104340.0,0.23497293]
[1747624153516,0.00248144,104350.0,104340.0,0.33228233]
[1747624153716,0.00248144,104350.0,104340.0,0.36348233]
[1747624153924,0.01206374,104350.0,104340.0,0.36348233]
[1747624154352,0.00248144,104350.0,104340.0,0.36348233]
[1747624154583,0.01206383,104350.0,104340.0,0.36348233]
[1747624154780,0.00248144,104350.0,104340.0,0.36348233]
[1747624155336,0.01206383,104350.0,104340.0,0.36348233]
[1747624155563,0.01306383,104350.0,104340.0,0.36548233]
[1747624155782,0.01306383,104350.0,104340.0,0.37255557]
[1747624156020,0.00348144,104350.0,104340.0,0.37255557]
[1747624156240,0.00348144,104350.0,104340.0,0.71255557]
[1747624156509,0.00348144,104350.0,104340.0,0.71355557]
[1747624157415,0.03832746,104360.0,104350.0,0.24858936]
[1747624157667,0.03832746,104360.0,104350.0,0.36746457]
[1747624157889,0.04790967,104360.0,104350.0,0.37704724]
[1747624158104,0.23955397,104360.0,104350.0,0.37704724]
[1747624158604,0.21080863,104360.0,104350.0,0.1566361]
[1747624158805,0.21080863,104360.0,104350.0,0.36846457]
[1747624159270,0.16362594,104370.0,104360.0,0.38118203]
[1747624159485,0.16362594,104370.0,104360.0,0.57282642]
[1747624159756,0.16362594,104370.0,104360.0,0.38118221]
[1747624159974,0.16362594,104370.0,104360.0,0.3716]
[1747624160687,0.16662594,104370.0,104360.0,0.48345025]
[1747624160960,0.16662594,104370.0,104360.0,0.68467667]
[1747624161220,0.16662594,104370.0,104360.0,0.68467676]
[1747624161508,0.16662594,104370.0,104360.0,0.50261458]
[1747624161760,0.16662594,104370.0,104360.0,0.49303246]
[1747624162006,0.16762594,104370.0,104360.0,0.48345025]
[1747624162254,0.16762594,104370.0,104360.0,0.49303246]
[1747624162472,0.16762594,104370.0,104360.0,0.70384072]
[1747624162868,0.16762594,104370.0,104360.0,0.69425879]
[1747624163543,0.16762594,104370.0,104360.0,0.68467676]
[1747624164790,0.16762594,104370.0,104360.0,0.48345025]
[1747624165004,0.16762594,104370.0,104360.0,0.46765025]
[1747624166217,0.16762594,104370.0,104360.0,0.45185025]
[1747624167032,0.16762594,104370.0,104360.0,0.46143237]
[1747624167239,0.18678825,104370.0,104360.0,0.67795851]
[1747624167441,0.2263689,104370.0,104360.0,0.6935587]
[1747624167825,0.21678816,104370.0,104360.0,0.6935587]
[1747624168638,0.19762594,104370.0,104360.0,0.45185025]
[1747624168988,0.19762594,104370.0,104360.0,0.46143246]
[1747624169230,0.19762594,104370.0,104360.0,0.47101458]
[1747624169430,0.19762594,104370.0,104360.0,0.48059661]
[1747624169840,0.19762594,104370.0,104360.0,0.49579661]
[1747624170579,0.19762594,104370.0,104360.0,0.50286985]
[1747624170808,0.19762594,104370.0,104360.0,0.69451415]
[1747624171631,0.19762594,104370.0,104360.0,0.45892349]
[1747624171836,0.19762594,104370.0,104360.0,0.34707324]
[1747624171837,0.21312594,104370.0,104360.0,0.34707324]
[1747624172048,0.22832594,104370.0,104360.0,0.00707324]
[1747624173758,0.20122633,104360.0,104350.0,0.01368585]
[1747624173959,0.20122633,104360.0,104350.0,0.45099525]
[1747624175065,0.20122633,104360.0,104350.0,0.45199525]
[1747624176491,0.01916359,104360.0,104350.0,0.70214706]
[1747624176727,0.02874479,104360.0,104350.0,0.71764641]
[1747624176945,0.03074314,104370.0,104360.0,0.58154911]
[1747624177159,0.22236908,104370.0,104360.0,0.69505851]
[1747624177368,0.02116194,104370.0,104360.0,0.70464008]
[1747624177548,0.0403237,104370.0,104360.0,0.71422192]
[1747624177752,0.0307425,104370.0,104360.0,0.72380349]
[1747624178089,0.0327425,104370.0,104360.0,0.72380349]
[1747624178546,0.01258056,104370.0,104360.0,0.72380349]
[1747624178742,0.03174186,104370.0,104360.0,0.72380349]
[1747624178912,0.01258056,104370.0,104360.0,0.72380349]
[1747624179115,0.0211613,104370.0,104360.0,0.72380349]
[1747624179539,0.03074232,104370.0,104360.0,0.72480349]
[1747624179749,0.04032343,104370.0,104360.0,0.72480349]
[1747624180342,0.04990463,104370.0,104360.0,0.72480349]
[1747624180725,0.04990463,104370.0,104200.0,2.30095478]
[1747624180926,0.04995277,104370.0,104360.0,0.28694853]
[1747624181187,0.24157871,104370.0,104360.0,0.28694853]
[1747624181391,0.22241741,104370.0,104360.0,0.09530423]
[1747624181797,0.21283639,104370.0,104360.0,0.09530423]
[1747624182187,0.21583639,104370.0,104360.0,0.09530423]
[1747624182538,0.21283639,104370.0,104360.0,0.09530423]
[1747624182735,0.21283639,104370.0,104360.0,0.10984508]
[1747624183199,0.20325528,104370.0,104360.0,0.46413226]
[1747624183393,0.23465528,104370.0,104360.0,0.44959141]
[1747624184481,0.23465528,104370.0,104360.0,0.45012697]
[1747624192053,0.23465528,104370.0,104360.0,0.45722535]
[1747624192253,0.23465528,104370.0,104360.0,0.00763394]
[1747624192758,0.23465528,104370.0,104360.0,0.0219513]
[1747624193171,0.23465528,104370.0,104360.0,0.0212313]
[1747624194997,0.23465528,104370.0,104360.0,0.01431736]
[1747624195194,0.20122633,104360.0,104350.0,0.35454085]
[1747624195401,0.20122633,104360.0,104350.0,0.36412398]
[1747624195632,0.21080826,104360.0,104350.0,0.37370702]
[1747624196274,0.21080826,104360.0,104350.0,0.35454085]
[1747624196494,0.21080826,104360.0,104350.0,0.37370684]
[1747624196879,0.21080826,104360.0,104350.0,0.36612389]
[1747624197149,0.21080826,104360.0,104350.0,0.36656188]
[1747624197378,0.22039047,104360.0,104350.0,0.5852075]
[1747624197612,0.22039047,104360.0,104350.0,0.6004075]
[1747624197838,0.22039047,104360.0,104350.0,0.59082455]
[1747624197970,0.22039047,104360.0,104350.0,0.5992327]
[1747624198400,0.22039047,104360.0,104350.0,0.58964975]
[1747624198878,0.22039047,104360.0,104350.0,0.5992327]
[1747624199424,0.22039001,104360.0,104350.0,0.61839813]
[1747624199617,0.22039001,104360.0,104350.0,0.62401555]
[1747624199828,0.22038992,104360.0,104350.0,0.63359813]
[1747624200835,0.22038992,104360.0,104350.0,0.63359822]
[1747624201666,0.22038992,104360.0,104350.0,0.6431808]
[1747624201805,0.01916304,104360.0,104350.0,0.73090716]
[1747624202009,0.22997102,104360.0,104350.0,0.68114191]
[1747624202233,0.23955314,104360.0,104350.0,0.69072458]
[1747624202436,0.22997176,104360.0,104350.0,0.69072467]
[1747624203077,0.26057176,104360.0,104350.0,0.69072467]
[1747624203286,0.22997176,104360.0,104350.0,0.70030734]
[1747624204244,0.22038964,104360.0,104350.0,0.70030734]
[1747624204445,0.02874534,104360.0,104350.0,0.74058983]
[1747624204852,0.02874525,104360.0,104350.0,0.74058983]
[1747624205072,0.02874525,104360.0,104350.0,0.73100734]
[1747624205207,0.02874525,104360.0,104350.0,0.74058983]
[1747624205427,0.00958138,104360.0,104350.0,0.73100661]
[1747624205647,0.01916313,104360.0,104350.0,0.73100661]
[1747624205877,0.01916295,104360.0,104350.0,0.73100661]
[1747624206226,0.91123602,104370.0,104360.0,0.21576736]
[1747624206430,0.91123602,104370.0,104360.0,0.32265888]
[1747624206757,0.91123602,104370.0,104360.0,0.33224091]
[1747624206949,0.94383602,104370.0,104360.0,0.12143246]
[1747624207395,0.94383602,104370.0,104360.0,0.32265879]
[1747624208114,0.93425519,104370.0,104360.0,0.32265879]
[1747624208494,0.91775519,104370.0,104360.0,0.32265879]
[1747624208957,0.90165519,104370.0,104360.0,0.32265879]
[1747624209609,0.71002861,104370.0,104360.0,0.3882222]
[1747624209825,0.71960935,104370.0,104360.0,0.3882222]
[1747624210192,0.73877129,104370.0,104360.0,0.3902222]
[1747624210908,0.74835249,104370.0,104360.0,0.3902222]
[1747624211512,0.74835249,104370.0,104360.0,0.3745222]
[1747624211736,0.74835249,104370.0,104360.0,0.3765222]
[1747624213189,0.93997925,104370.0,104360.0,0.37652238]
[1747624213360,0.93039851,104370.0,104360.0,0.32665879]
[1747624213623,0.94649851,104370.0,104360.0,0.34582238]
[1747624213826,0.94649851,104370.0,104360.0,0.35540431]
[1747624214036,0.94649851,104370.0,104360.0,0.34582256]
[1747624214264,0.94885537,104370.0,104360.0,0.11585025]
[1747624214689,0.94885537,104370.0,104360.0,0.1013094]
[1747624214896,0.94885537,104370.0,104360.0,0.004]
[1747624217973,1.01885537,104370.0,104360.0,0.004]
[1747624220958,0.32045537,104370.0,104360.0,0.004]
[1747624221227,0.53677537,104370.0,104360.0,0.004]
[1747624221682,0.27935537,104370.0,104360.0,0.20522633]
[1747624222070,0.27935537,104370.0,104360.0,0.30253573]
[1747624222278,0.27935537,104370.0,104360.0,0.31211766]
[1747624222807,0.22893639,104370.0,104360.0,0.3216995]
[1747624222962,0.21283639,104370.0,104360.0,0.33128125]
[1747624223360,0.21283639,104370.0,104360.0,0.1013094]
[1747624223561,0.22873639,104370.0,104360.0,0.30253582]
[1747624223771,0.22873639,104370.0,104360.0,0.31211785]
[1747624223975,0.22873639,104370.0,104360.0,0.32169978]
[1747624224198,0.22873639,104370.0,104360.0,0.33128153]
[1747624224395,0.22873639,104370.0,104360.0,0.32169978]
[1747624225093,0.22873639,104370.0,104360.0,0.33128153]
[1747624225224,0.21283639,104370.0,104360.0,0.33128153]
[1747624225607,0.21283639,104370.0,104360.0,0.32169978]
[1747624225807,0.21925537,104370.0,104360.0,0.32169978]
[1747624226202,0.20325537,104370.0,104360.0,0.33128162]
[1747624228111,0.24985537,104370.0,104360.0,0.1013094]
[1747624228431,0.24985537,104370.0,104360.0,0.004]
[1747624236900,0.99595461,104370.0,104360.0,0.004]
[1747624237351,1.03085294,104370.0,104360.0,0.004]
[1747624237577,1.24041294,104370.0,104360.0,0.004]
[1747624238031,0.48524125,104360.0,104350.0,0.00989913]
[1747624238239,1.23266082,104360.0,104350.0,0.00043799]
[1747624238768,0.28088892,104320.0,104310.0,0.00946114]
[1747624239005,0.77428384,104320.0,104310.0,0.00946114]
[1747624239927,0.55406892,104320.0,104310.0,0.00946114]
[1747624240137,0.55406892,104320.0,104310.0,0.00994258]
[1747624240590,0.71428384,104320.0,104310.0,0.00994258]
[1747624241745,0.80159324,104320.0,104310.0,0.00048144]
[1747624242179,0.80159324,104320.0,104310.0,0.00148144]
[1747624243545,0.80159324,104320.0,104310.0,0.00048144]
[1747624243887,0.80259324,104320.0,104310.0,0.00148144]
[1747624244299,0.80259324,104320.0,104310.0,0.00048144]
[1747624244840,0.80359324,104320.0,104310.0,0.00048144]
[1747624245921,1.02380816,104320.0,104310.0,0.00048144]
[1747624246128,0.80359324,104320.0,104310.0,0.00048144]
[1747624246758,1.02180816,104320.0,104310.0,0.00048144]
[1747624247174,0.81059324,104320.0,104310.0,0.00248144]
[1747624247790,1.03080816,104320.0,104310.0,0.00248144]
[1747624248702,1.03080816,104320.0,104270.0,0.01052343]
[1747624248703,0.55648473,104280.0,104270.0,0.01052343]
[1747624248933,0.0191817,104260.0,104250.0,0.29899129]
[1747624249096,0.23019244,104260.0,104250.0,0.52526999]
[1747624249444,0.21101074,104260.0,104250.0,0.4373094]
[1747624250051,0.21149162,104260.0,104250.0,0.4373094]
[1747624250253,0.56700654,104260.0,104250.0,0.01005022]
[1747624250673,0.21105076,104240.0,104230.0,0.00946114]
[1747624250862,0.42061076,104240.0,104230.0,0.44677054]
[1747624251079,0.42061076,104240.0,104230.0,0.0973094]
[1747624251288,0.42061076,104240.0,104230.0,0.4373094]
[1747624251547,0.21105076,104240.0,104230.0,0.4373094]
[1747624251677,0.42065076,104240.0,104230.0,0.45199866]
[1747624252131,0.41665076,104240.0,104230.0,0.45199866]
[1747624252335,0.41665076,104240.0,104230.0,0.0973094]
[1747624252540,0.41665076,104240.0,104200.0,0.00946114]
[1747624252541,0.20151598,104210.0,104200.0,0.00946114]
[1747624252744,0.20151598,104210.0,104200.0,0.10677054]
[1747624252745,0.82951598,104210.0,104200.0,0.10677054]
[1747624252947,0.82951598,104210.0,104200.0,0.45682817]
[1747624253149,0.4184,104210.0,104200.0,1.09889637]
[1747624253326,0.4184,104210.0,104200.0,0.86058459]
[1747624253526,0.43759062,104210.0,104200.0,0.74862922]
[1747624253735,0.64870251,104210.0,104200.0,0.53749726]
[1747624253946,0.63958699,104210.0,104200.0,0.54756206]
[1747624254126,0.4380712,104210.0,104200.0,0.39139306]
[1747624254498,0.63958699,104210.0,104200.0,0.73152884]
[1747624254914,0.62999136,104210.0,104200.0,0.73152884]
[1747624255130,0.6395869,104210.0,104200.0,0.73152884]
[1747624255339,0.6395869,104210.0,104200.0,0.74112567]
[1747624255477,0.64918263,104210.0,104200.0,0.66689892]
[1747624255678,0.6395869,104210.0,104200.0,0.67649575]
[1747624255906,0.6395869,104210.0,104200.0,0.66689892]
[1747624256081,0.6395869,104210.0,104200.0,0.67649575]
[1747624256425,0.6405869,104210.0,104200.0,0.54769784]
[1747624256618,0.63099136,104210.0,104200.0,0.54769784]
[1747624256827,0.62139591,104210.0,104200.0,0.74923315]
[1747624257022,0.62139591,104210.0,104200.0,0.73963641]
[1747624257229,0.63099118,104210.0,104200.0,0.74923324]
[1747624257401,0.64058672,104210.0,104200.0,0.74923324]
[1747624257610,0.64058672,104210.0,104200.0,0.75882989]
[1747624258024,0.64058672,104210.0,104200.0,0.75882998]
[1747624258192,0.64058672,104210.0,104200.0,0.76842663]
[1747624258591,0.63099118,104210.0,104200.0,0.76842663]
[1747624258840,0.64158663,104210.0,104200.0,0.76842663]
[1747624259874,0.64158663,104210.0,104200.0,0.75882998]
[1747624260079,0.65118226,104210.0,104200.0,0.47630092]
[1747624260272,0.64158755,104210.0,104200.0,0.47630092]
[1747624260493,0.63199182,104210.0,104200.0,0.48589775]
[1747624260696,0.63199182,104210.0,104200.0,0.71923306]
[1747624260894,0.64158764,104210.0,104200.0,0.51769766]
[1747624261098,0.64158764,104210.0,104200.0,0.52729467]
[1747624261304,0.64158699,104210.0,104200.0,0.72882989]
[1747624261536,0.64158699,104210.0,104200.0,0.73842645]
[1747624261742,0.64158699,104210.0,104200.0,0.72882998]
[1747624261959,0.37293431,104210.0,104200.0,0.77992282]
[1747624262172,0.37293431,104210.0,104200.0,0.77992291]
[1747624262379,0.37293431,104210.0,104200.0,0.77992227]
[1747624262978,0.38252958,104210.0,104200.0,0.77992227]
[1747624263181,0.38252948,104210.0,104200.0,0.77992227]
[1747624264338,0.32606569,104210.0,104200.0,0.77992227]
[1747624264541,0.54677275,104210.0,104200.0,0.48589784]
[1747624264714,0.53717684,104210.0,104200.0,0.68743306]
[1747624264978,0.53717684,104210.0,104200.0,0.69702952]
[1747624265203,0.32606569,104210.0,104200.0,0.10690586]
[1747624265422,0.33566105,104210.0,104200.0,0.35053763]
[1747624265675,0.34525659,104210.0,104200.0,0.3607794]
[1747624265889,0.53717675,104210.0,104200.0,0.36077968]
[1747624266071,0.53717675,104210.0,104200.0,0.37037605]
[1747624266468,0.53717675,104210.0,104200.0,0.34269376]
[1747624266679,0.53717675,104210.0,104200.0,0.35229013]
[1747624266937,0.60267721,104210.0,104200.0,0.01024168]
[1747624267368,0.20153531,104200.0,104190.0,0.0120571]
[1747624267580,0.24203196,104200.0,104190.0,0.0120571]
[1747624267781,0.42245196,104200.0,104190.0,0.0120571]
[1747624267990,0.45335196,104200.0,104190.0,0.0120571]
[1747624268203,0.45505196,104200.0,104190.0,0.0120571]
[1747624268406,0.48755196,104200.0,104190.0,0.02218089]
[1747624268786,0.48755196,104200.0,104190.0,0.0120571]
[1747624269473,0.42245196,104200.0,104190.0,0.02165495]
[1747624269656,0.41485531,104200.0,104190.0,0.21561195]
[1747624269856,0.41245631,104200.0,104190.0,0.21561195]
[1747624270072,0.41245631,104200.0,104190.0,0.21561185]
[1747624270711,0.41245631,104200.0,104190.0,0.02365495]
[1747624271090,0.41245631,104200.0,104190.0,0.0332527]
[1747624271283,0.41245631,104200.0,104190.0,0.0140571]
[1747624271494,0.41245631,104200.0,104190.0,0.22520942]
[1747624271703,0.41245631,104200.0,104190.0,0.21561185]
[1747624271867,1.11085631,104200.0,104190.0,0.22520951]
[1747624272083,1.11085631,104200.0,104190.0,0.21561185]
[1747624272289,1.11085631,104200.0,104190.0,0.23480689]
[1747624272483,0.70999646,104200.0,104190.0,0.24440409]
[1747624272759,0.72918939,104200.0,104190.0,0.23480689]
[1747624273754,0.72918939,104200.0,104190.0,0.24440418]
[1747624274370,0.92112796,104200.0,104190.0,0.24440418]
[1747624274596,0.72918939,104200.0,104190.0,0.24440418]
[1747624274794,0.72918939,104200.0,104190.0,0.25400138]
[1747624274795,0.70999619,104200.0,104190.0,0.25400138]
[1747624275007,0.72918939,104200.0,104190.0,0.25400138]
[1747624275249,0.7291893,104200.0,104190.0,0.28070756]
[1747624275674,0.7004,104200.0,104190.0,0.37801696]
[1747624275860,0.70999619,104200.0,104190.0,0.41051696]
[1747624276151,0.7099961,104200.0,104190.0,0.41051696]
[1747624276301,0.70520101,104200.0,104190.0,0.41051696]
[1747624276735,0.69560491,104200.0,104190.0,0.79715781]
[1747624279264,0.68841263,104200.0,104190.0,0.79715781]
[1747624279465,0.68841263,104200.0,104190.0,1.49231381]
[1747624279671,0.68841263,104200.0,104190.0,1.43335881]
[1747624280512,0.69800882,104200.0,104190.0,0.79715781]
[1747624280688,0.69800873,104200.0,104190.0,0.73255781]
[1747624280885,0.21113177,104200.0,104190.0,0.47807268]
[1747624281189,0.21113177,104200.0,104190.0,0.68922472]
[1747624281391,0.0287893,104200.0,104190.0,0.69882192]
[1747624281633,0.03838604,104200.0,104190.0,0.68922472]
[1747624281981,0.23032461,104200.0,104190.0,0.68922472]
[1747624282940,0.23032461,104200.0,104190.0,0.67962734]
[1747624283203,0.28522842,104200.0,104190.0,0.66802968]
[1747624283445,0.27563196,104200.0,104190.0,0.68722519]
[1747624283646,0.28722879,104200.0,104190.0,0.61211065]
[1747624283825,0.29682571,104200.0,104190.0,0.61211065]
[1747624284441,0.28722879,104200.0,104190.0,0.61211065]
[1747624285462,0.29682571,104200.0,104190.0,0.61211065]
[1747624286413,0.09529022,104200.0,104190.0,0.62170785]
[1747624286842,0.08569339,104200.0,104190.0,0.62170785]
[1747624287954,0.35298636,104200.0,104190.0,0.04176328]
[1747624288160,0.42298636,104200.0,104190.0,0.04176328]
[1747624288365,0.34763196,104200.0,104190.0,0.04176328]
[1747624288569,0.34763196,104200.0,104190.0,0.38176328]
[1747624289007,0.34763196,104200.0,104190.0,0.38162401]
[1747624290189,0.33763196,104200.0,104190.0,0.57358101]
[1747624290407,0.28272888,104200.0,104190.0,0.58317867]
[1747624290619,0.28272888,104200.0,104190.0,0.60237353]
[1747624290814,0.28272888,104200.0,104190.0,0.59277624]
[1747624291180,0.002,104200.0,104190.0,0.60237362]
[1747624291501,0.002,104200.0,104190.0,0.78952107]
[1747624291649,0.0115961,104200.0,104190.0,0.78952107]
[1747624291853,0.002,104200.0,104190.0,0.78952107]
[1747624292255,0.1442932,104200.0,104190.0,0.04162401]
[1747624292463,0.33623177,104200.0,104190.0,0.04162401]
[1747624292664,0.33623177,104200.0,104190.0,0.38162401]
[1747624292982,0.33623177,104200.0,104190.0,0.39122186]
[1747624293234,0.33623177,104200.0,104190.0,0.38162401]
[1747624293627,0.32663531,104200.0,104190.0,0.04162401]
[1747624294946,0.33663531,104200.0,104190.0,0.04162401]
[1747624297914,0.32663531,104200.0,104190.0,0.04162401]
[1747624298343,0.33663531,104200.0,104190.0,0.04162401]
[1747624298556,0.32663531,104200.0,104190.0,0.04162401]
[1747624298989,0.95194794,104200.0,104190.0,0.04162401]
[1747624300757,0.02879161,104190.0,104180.0,0.29727496]
[1747624300955,0.02879161,104190.0,104180.0,0.42151315]
[1747624301160,0.03838899,104190.0,104180.0,0.42151315]
[1747624301341,0.03838899,104190.0,104180.0,0.41191503]
[1747624301551,0.03838899,104190.0,104180.0,0.42151315]
[1747624302241,0.03838899,104190.0,104180.0,0.41204455]
[1747624302680,0.03838899,104190.0,104180.0,0.75204455]
[1747624303327,0.23994374,104190.0,104180.0,0.73284822]
[1747624303551,0.23034599,104190.0,104180.0,0.70914634]
[1747624304588,0.23034599,104190.0,104180.0,0.70914643]
[1747624305056,0.29444599,104190.0,104180.0,0.46423819]
[1747624305323,0.27697249,104180.0,104170.0,0.01472536]
[1747624305589,0.28657116,104180.0,104170.0,0.45203476]
[1747624305826,0.28657116,104180.0,104170.0,0.48838525]
[1747624305827,0.68156993,104180.0,104170.0,0.48838525]
[1747624306091,0.68156993,104180.0,104170.0,0.49798475]
[1747624306339,0.68156993,104180.0,104170.0,0.70917696]
[1747624306340,0.62957176,104180.0,104170.0,0.70917696]
[1747624306612,0.63917025,104180.0,104170.0,0.69957792]
[1747624306853,0.62957176,104180.0,104170.0,0.71877609]
[1747624307312,0.4184,104180.0,104170.0,0.78187609]
[1747624307769,0.42799794,104180.0,104170.0,0.78187609]
[1747624307991,0.42799803,104180.0,104170.0,0.78187609]
[1747624308266,0.4184,104180.0,104170.0,0.78187609]
[1747624308466,0.42799794,104180.0,104170.0,0.78187609]
[1747624308629,0.42899794,104180.0,104170.0,0.78187609]
[1747624309022,0.64876828,104180.0,104170.0,0.72368651]
[1747624309253,0.45779286,104180.0,104170.0,0.72368651]
[1747624309840,0.45879277,104180.0,104170.0,0.72368651]
[1747624310242,0.35212689,104180.0,104170.0,0.0269354]
[1747624310445,0.26519335,104170.0,104160.0,0.0202566]
[1747624310649,0.27479276,104170.0,104160.0,0.02985721]
[1747624310887,0.27479276,104170.0,104160.0,0.40638638]
[1747624311131,0.32519335,104170.0,104160.0,0.04718525]
[1747624311305,0.32519335,104170.0,104160.0,0.38718525]
[1747624311459,0.32519335,104170.0,104160.0,0.04718525]
[1747624311660,0.32567364,104170.0,104160.0,0.04718525]